bitfinex-derivatives/quotes_ETHF0:USTF0_20251031
["timestamp","ask_amount","ask_price","bid_price","bid_amount"]
[1761931106310,3.67972,3816.2,3816.0,9.39137965]
[1761931106504,3.68157129,3816.2,3816.0,9.39137965]
[1761931107010,3.68157129,3816.2,3816.0,0.00237965]
[1761931110309,3.68157129,3816.2,3814.7,0.02621472]
[1761931110310,1.17987,3816.0,3814.7,0.02621472]
[1761931110611,0.47209,3814.9,3814.7,0.02621472]
[1761931111413,0.47209,3814.9,3814.7,0.02915934]
[1761931111912,0.47217,3814.2,3814.0,0.42002801]
[1761931112117,3.2078,3814.1,3814.0,0.42002801]
[1761931112804,3.2078,3814.1,3814.0,0.42285899]
[1761931114421,3.2078,3814.5,3814.0,0.42285899]
[1761931115912,3.2078,3814.5,3814.0,0.89503899]
[1761931116429,3.2078,3814.5,3814.1,0.47217]
[1761931116921,3.2078,3814.5,3814.2,0.47216]
[1761931117212,3.2078,3814.5,3814.4,0.47214]
[1761931117422,3.2078,3814.5,3814.0,0.42285899]
[1761931117622,3.2078,3814.5,3814.1,0.47217]
[1761931117910,3.2078,3814.5,3814.2,0.47215]
[1761931118114,3.2078,3814.9,3814.0,9.81885899]
[1761931118316,3.2078,3814.9,3814.5,0.47212]
[1761931118506,3.2078,3814.9,3814.0,9.81885899]
[1761931118706,3.2078,3814.9,3814.4,0.47213]
[1761931119112,3.2078,3814.9,3814.0,9.81885899]
[1761931119814,0.4721,3814.7,3814.2,0.47215]
[1761931120207,0.4721,3814.7,3814.1,0.47216]
[1761931120410,0.4721,3814.7,3814.0,6.10985899]
[1761931120813,3.2078,3814.9,3814.3,0.47213]
[1761931121011,3.2078,3814.9,3814.4,0.47213]
[1761931121715,0.47209,3814.8,3814.2,0.47216]
[1761931122015,3.2078,3815.4,3814.7,3.2078]
[1761931122316,3.2078,3815.4,3815.1,0.47205]
[1761931122518,3.2078,3815.4,3815.2,0.47204]
[1761931122920,3.2078,3815.4,3814.7,3.2078]
[1761931123124,3.2078,3815.4,3815.2,0.47204]
[1761931123822,3.2078,3815.4,3815.3,0.47203]
[1761931125018,3.2078,3815.4,3814.4,0.47214]
[1761931125220,3.2078,3814.9,3814.4,0.47214]
[1761931125418,3.67988,3814.9,3814.5,0.47213]
[1761931125727,0.47209,3814.8,3814.3,3.67995]
[1761931126016,0.47209,3814.8,3814.4,0.47214]
[1761931126416,3.2078,3814.9,3813.0,2.36156]
[1761931126417,3.2078,3816.1,3814.7,3.2078]
[1761931126613,0.61010779,3816.0,3815.2,3.2078]
[1761931126820,0.47199,3815.7,3815.3,0.47203]
[1761931127013,3.2078,3815.7,3815.2,3.2078]
[1761931127312,0.4721,3814.8,3814.1,3.2078]
[1761931127519,0.47209,3814.8,3814.4,0.47214]
[1761931127707,4.38791,3815.3,3814.2,0.47217]
[1761931127913,1.18015,3815.1,3814.1,3.2078]
[1761931128120,1.18012,3815.2,3814.4,0.47214]
[1761931128316,3.2078,3815.3,3814.6,0.47212]
[1761931128619,1.18012,3815.2,3814.5,3.2078]
[1761931128815,0.47212,3814.6,3814.2,0.47216]
[1761931129008,3.2078,3814.9,3814.3,0.47215]
[1761931129211,0.47212,3814.6,3814.3,0.47215]
[1761931129721,3.2078,3814.5,3814.0,0.42285899]
[1761931130219,0.4721,3814.8,3814.2,0.47216]
[1761931130421,0.61314023,3814.7,3814.2,0.47216]
[1761931130616,3.2078,3814.5,3814.0,0.89503899]
[1761931130820,0.61314023,3814.4,3814.2,0.47217]
[1761931131119,0.61314023,3814.4,3814.0,0.42285899]
[1761931131318,0.47205,3815.2,3814.2,3.2078]
[1761931131522,0.47207,3815.0,3814.6,3.2078]
[1761931131710,0.47208,3814.9,3814.6,3.2078]
[1761931131914,2.56304304,3815.5,3814.6,3.2078]
[1761931131915,0.4721,3814.8,3814.6,3.2078]
[1761931132416,15.13196304,3815.2,3814.0,0.42285899]
[1761931132618,0.47214,3814.4,3814.1,3.2078]
[1761931133219,0.47216,3814.3,3814.1,3.2078]
[1761931133433,0.47217,3814.2,3814.1,3.2078]
[1761931134221,0.47218,3814.1,3814.0,0.42285899]
[1761931134419,1.85520304,3814.1,3814.0,0.42285899]
[1761931134715,0.47218,3814.1,3814.0,0.42285899]
[1761931134914,1.83926936,3814.2,3814.0,0.42285899]
[1761931135222,0.47218,3814.1,3814.0,0.42285899]
[1761931135410,2.31144936,3814.1,3814.0,0.42285899]
[1761931136024,0.47226,3813.5,3813.3,3.2078]
[1761931136223,1.37273329,3813.4,3812.9,3.2078]
[1761931136519,1.37273329,3813.4,3811.4,3.2078]
[1761931136520,3.2078,3813.2,3811.4,3.2078]
[1761931136714,9.397,3813.3,3811.4,3.2078]
[1761931136715,1.37224654,3811.8,3811.4,3.2078]
[1761931136912,1.37224654,3811.8,3811.4,0.00202135]
[1761931136913,1.37471913,3811.8,3811.4,0.00202135]
[1761931137128,11.27173654,3811.7,3811.4,0.00202135]
[1761931137324,0.4725,3811.6,3811.4,0.00202135]
[1761931137617,0.00247259,3811.8,3811.6,0.47248]
[1761931137819,1.37224654,3812.4,3811.5,3.2078]
[1761931138018,1.37224654,3812.5,3811.9,3.2078]
[1761931138222,2.28841725,3813.4,3811.7,3.2078]
[1761931138223,4.58004654,3812.9,3811.7,3.2078]
[1761931138417,4.58004654,3812.9,3812.2,3.2078]
[1761931138418,0.47233,3812.9,3812.2,3.2078]
[1761931138616,0.47237,3812.6,3812.2,3.2078]
[1761931138815,1.37224654,3812.3,3811.4,3.20982135]
[1761931139015,0.47248,3811.7,3811.4,3.20982135]
[1761931139323,0.4725,3811.6,3811.4,3.20982135]
[1761931139621,13.90186,3812.2,3809.7,0.02624913]
[1761931139622,3.2078,3811.7,3810.1,3.2078]
[1761931139825,3.68034,3811.3,3810.5,3.2078]
[1761931140126,1.36791815,3811.2,3810.5,3.2078]
[1761931140331,3.2078,3811.0,3810.1,1.1817]
[1761931140623,0.00220615,3812.6,3811.0,0.47256]
[1761931140624,3.68026,3811.9,3811.0,0.47256]
[1761931140926,4.57571815,3812.4,3811.5,3.2078]
[1761931141125,3.2078,3812.4,3811.5,3.2078]
[1761931141427,3.2078,3812.0,3811.1,3.2078]
[1761931141622,3.2078,3811.9,3811.1,3.2078]
[1761931141822,3.2078,3812.3,3811.7,3.2078]
[1761931142021,3.2078,3812.3,3811.3,3.2078]
[1761931142224,0.00220615,3812.6,3811.0,0.47254]
[1761931142225,3.2078,3811.8,3811.0,0.47254]
[1761931142522,3.21000615,3812.6,3811.7,3.2078]
[1761931142731,3.21000615,3812.6,3811.9,0.47243]
[1761931143116,0.00220615,3812.6,3812.1,3.2078]
[1761931143418,0.60439674,3812.5,3812.1,3.2078]
[1761931143618,0.60441842,3812.4,3812.2,0.4724]
[1761931143826,0.00220615,3812.6,3812.4,0.47237]
[1761931144027,0.00220615,3812.6,3812.5,3.2078]
[1761931145222,4.57571815,3814.0,3812.5,3.2078]
[1761931145520,0.47224,3813.6,3813.1,3.2078]
[1761931145728,0.47228,3813.3,3812.4,3.2078]
[1761931145927,1.07678237,3813.2,3812.4,3.2078]
[1761931146126,0.47229,3813.2,3812.4,3.2078]
[1761931146331,0.47233,3812.9,3812.4,3.2078]
[1761931146530,0.47234,3812.8,3812.4,3.2078]
[1761931147537,0.47237,3812.6,3812.4,3.2078]
[1761931147926,3.2078,3812.7,3812.0,12.7618]
[1761931148123,0.60469244,3812.6,3812.0,12.7618]
[1761931148436,0.47241,3812.2,3812.0,3.2078]
[1761931148627,0.47243,3812.1,3811.6,3.2078]
[1761931148818,0.47245,3811.9,3811.6,3.2078]
[1761931149424,0.47247,3811.8,3811.6,3.2078]
[1761931149631,0.47249,3811.6,3811.2,3.2078]
[1761931149832,0.47252,3811.4,3811.2,3.2078]
[1761931150333,1.18138,3811.1,3810.5,0.00266036]
[1761931150528,3.2078,3810.6,3810.5,0.00266036]
[1761931150918,1.83031106,3811.9,3810.5,0.00266036]
[1761931150919,0.47256,3811.1,3810.5,0.00266036]
[1761931151118,0.60394141,3811.0,3810.5,0.00266036]
[1761931151327,0.47258,3810.9,3810.5,0.00266036]
[1761931151630,3.2078,3810.9,3810.5,0.00266036]
[1761931152330,1.18122,3811.6,3810.5,0.00266036]
[1761931152331,3.2078,3811.3,3810.5,0.00266036]
[1761931152530,0.47259,3810.8,3810.5,0.00266036]
[1761931152733,3.2078,3810.9,3810.5,0.00266036]
[1761931152734,0.47261,3810.7,3810.5,0.00266036]
[1761931154230,0.47261,3810.7,3808.6,1.18214]
[1761931154231,0.4727,3809.9,3809.1,3.68059]
[1761931154422,0.4727,3809.9,3809.2,0.47278]
[1761931154737,0.4727,3809.9,3809.1,3.2078]
[1761931155237,0.4727,3809.9,3808.5,4.292]
[1761931155238,0.00247995,3809.9,3809.7,0.02939988]
[1761931155926,3.2078,3811.0,3809.8,1.18177]
[1761931156237,3.68036,3811.0,3810.5,0.47262]
[1761931156439,0.4726,3810.7,3810.2,3.68045]
[1761931156734,3.2078,3811.5,3810.2,3.2078]
[1761931156929,3.20978878,3811.5,3810.6,3.2078]
[1761931157128,0.47258,3810.9,3810.6,3.2078]
[1761931157437,3.2078,3810.7,3810.2,0.47266]
[1761931157629,3.2078,3810.7,3809.7,3.23719988]
[1761931157831,0.47264,3810.4,3809.9,0.47269]
[1761931158021,3.2078,3810.7,3809.7,3.23719988]
[1761931158221,3.2078,3810.7,3809.7,3.70990988]
[1761931158434,0.47264,3810.4,3809.7,3.23719988]
[1761931158630,0.47265,3810.3,3809.7,3.70990988]
[1761931158828,0.47269,3810.0,3809.7,3.23719988]
[1761931159430,0.4727,3809.9,3809.7,3.23719988]
[1761931159630,0.4727,3809.9,3809.7,0.02939988]
[1761931159929,3.2078,3809.8,3809.7,0.02939988]
[1761931160433,0.4727,3809.9,3809.7,0.02939988]
[1761931160638,3.6805,3809.9,3809.7,0.02939988]
[1761931165333,0.47278,3809.2,3808.7,3.2078]
[1761931165548,0.47278,3809.2,3807.1,1.1826]
[1761931165549,0.47288,3808.4,3808.3,3.2078]
[1761931165839,1.1825,3807.5,3805.3,3.2078]
[1761931166041,1.18245,3807.7,3804.7,0.02628363]
[1761931166042,3.2078,3806.3,3804.7,0.02628363]
[1761931166336,2.12216191,3806.3,3806.2,0.43158772]
[1761931166540,3.2078,3807.7,3806.2,0.90473772]
[1761931166740,3.2078,3807.3,3806.2,0.43158772]
[1761931167043,0.47276,3809.4,3807.2,1.18256]
[1761931167233,3.2078,3809.6,3808.0,3.2078]
[1761931167429,0.47284,3808.8,3808.0,3.2078]
[1761931167629,0.00280102,3808.8,3807.6,0.47298]
[1761931167934,3.2078,3809.4,3808.5,3.2078]
[1761931168137,2.54940815,3810.8,3809.3,3.2078]
[1761931168138,3.2078,3810.2,3809.3,3.2078]
[1761931168335,3.2078,3810.5,3809.7,3.2078]
[1761931168738,3.2078,3810.5,3809.7,0.47272]
[1761931168934,0.00249126,3810.5,3810.1,0.47267]
[1761931169241,0.00249126,3810.5,3810.0,3.2078]
[1761931169836,0.00249126,3810.5,3809.7,0.00212264]
[1761931170037,0.00249126,3810.5,3809.7,0.47483264]
[1761931170238,0.47264,3810.4,3809.7,0.00212264]
[1761931170536,0.47266,3810.3,3809.7,0.00212264]
[1761931170738,0.47271,3809.9,3809.7,0.00212264]
[1761931171035,3.2078,3810.1,3809.7,0.00212264]
[1761931171548,0.00249126,3810.5,3810.0,3.2078]
[1761931172636,0.00249126,3810.5,3810.1,0.47267]
[1761931172947,0.00249126,3810.5,3810.0,3.2078]
[1761931173838,0.00249126,3810.5,3810.0,3.68048]
[1761931174147,0.47265,3810.3,3809.7,0.00212264]
[1761931174343,0.00249126,3810.5,3809.7,0.00212264]
[1761931174736,0.47268,3810.0,3809.7,0.00212264]
[1761931174932,0.47265,3810.2,3809.7,0.00212264]
[1761931175241,0.00249126,3810.5,3809.7,0.00212264]
[1761931175441,0.00249126,3810.5,3810.0,3.2078]
[1761931176045,0.47510126,3810.5,3810.0,3.2078]
[1761931176240,0.47263,3810.4,3810.0,3.2078]
[1761931176437,0.00249126,3810.5,3810.0,3.2078]
[1761931177338,0.47267,3810.1,3809.7,0.00212264]
[1761931177537,0.47266,3810.2,3809.7,0.00212264]
[1761931177742,0.47267,3810.1,3809.7,0.00212264]
[1761931178049,0.47511126,3810.5,3809.7,0.00212264]
[1761931178242,0.00249126,3810.5,3810.0,3.68047]
[1761931178446,0.00249126,3810.5,3810.4,3.2078]
[1761931180148,3.2078,3811.4,3810.4,12.9628]
[1761931180442,3.2078,3812.2,3811.1,3.68033]
[1761931180644,0.60634297,3812.1,3811.2,0.47252]
[1761931180945,0.60634297,3812.0,3811.5,3.2078]
[1761931181245,0.00228835,3812.0,3811.5,3.2078]
[1761931181439,0.47247,3811.7,3811.5,3.2078]
[1761931181933,1.18123,3811.5,3810.0,0.47267]
[1761931182138,0.47259,3810.7,3810.1,0.47265]
[1761931182336,3.2078,3811.1,3809.9,3.2078]
[1761931182337,1.1814,3811.0,3809.9,3.2078]
[1761931182545,0.4726,3810.7,3810.1,0.47266]
[1761931182744,0.4726,3810.6,3810.1,0.47266]
[1761931182940,0.47257,3810.9,3810.3,3.2078]
[1761931183144,3.2078,3811.5,3810.3,3.2078]
[1761931183346,0.60605827,3811.4,3810.3,3.68043]
[1761931183539,3.2078,3811.5,3810.5,0.47261]
[1761931183840,3.2078,3811.9,3810.8,3.68037]
[1761931184041,0.47246,3811.7,3810.8,3.2078]
[1761931184237,0.47248,3811.6,3811.0,0.47254]
[1761931184433,0.47248,3811.6,3811.1,0.47253]
[1761931184638,0.47252,3811.3,3810.9,10.24055]
[1761931184838,1.18113,3811.8,3810.9,9.768]
[1761931185045,0.47254,3811.1,3810.9,9.768]
[1761931185748,0.47249,3811.5,3811.0,0.47255]
[1761931185949,0.00228835,3812.0,3811.3,3.2078]
[1761931186350,0.47247,3811.7,3811.3,3.2078]
[1761931186562,0.47247,3811.7,3811.3,3.68031]
[1761931186853,0.47248,3811.6,3811.3,3.68031]
[1761931187051,0.00228835,3812.0,3811.3,3.2078]
[1761931187545,0.00228835,3812.0,3811.4,0.4725]
[1761931187745,0.00228835,3812.0,3811.3,3.2078]
[1761931187942,1.18119,3811.6,3810.7,3.2078]
[1761931188144,0.47255,3811.0,3810.8,9.753]
[1761931188347,1.18122,3811.5,3810.8,9.753]
[1761931188546,1.18119,3811.6,3810.8,9.753]
[1761931188851,0.47253,3811.2,3810.8,10.22557]
[1761931189247,0.47253,3811.2,3810.7,3.2078]
[1761931189445,4.38898,3811.7,3810.8,9.749]
[1761931189446,1.18119,3811.6,3810.8,9.749]
[1761931189845,0.47252,3811.3,3810.8,10.22157]
[1761931190049,0.00228835,3812.0,3810.8,9.749]
[1761931190252,0.00228835,3812.0,3811.6,3.2078]
[1761931190452,0.00228835,3812.0,3811.6,12.9478]
[1761931190852,0.00228835,3812.0,3811.7,0.47246]
[1761931191053,0.00228835,3812.0,3811.8,0.47245]
[1761931191242,0.00228835,3812.0,3811.7,0.47246]
[1761931191462,0.00228835,3812.0,3811.6,13.42027]
[1761931191758,0.00228835,3812.0,3811.8,0.47245]
[1761931192447,0.00228835,3812.0,3811.6,13.42027]
[1761931192648,0.47245,3811.9,3811.6,13.42027]
[1761931192847,0.00228835,3812.0,3811.6,13.42027]
[1761931192848,0.00228835,3812.0,3811.7,9.732]
[1761931193154,0.00228835,3812.0,3811.7,10.20446]
[1761931193453,0.47471835,3812.0,3811.7,9.732]
[1761931193756,0.47245,3811.9,3811.7,9.732]
[1761931194051,0.00228835,3812.0,3811.7,9.732]
[1761931194251,0.47244,3811.9,3811.7,9.732]
[1761931194460,0.47246,3811.8,3811.7,9.732]
[1761931194758,0.47244,3811.9,3811.7,9.732]
[1761931195453,0.00228835,3812.0,3811.7,9.732]
[1761931195955,0.00228835,3812.0,3811.7,10.20446]
[1761931196157,0.00228835,3812.0,3811.9,0.47244]
[1761931196864,3.68011,3813.0,3812.4,0.47238]
[1761931197059,3.2078,3813.0,3812.5,9.712]
[1761931197559,3.68007,3813.4,3812.5,9.712]
[1761931197755,3.2078,3813.8,3813.2,0.47228]
[1761931197951,3.21069993,3813.8,3813.2,0.00253596]
[1761931198254,3.21069993,3813.8,3812.4,3.05]
[1761931198255,0.47236,3812.6,3812.4,3.05]
[1761931198559,3.2078,3812.8,3812.5,3.05]
[1761931198857,0.47235,3812.7,3812.5,3.05]
[1761931199154,0.47235,3812.7,3812.5,3.05305381]
[1761931199358,0.47235,3812.7,3812.6,8.056]
[1761931200144,0.47235,3812.7,3812.5,0.00305381]
[1761931202353,3.2078,3812.9,3812.5,0.00305381]
[1761931202550,3.68012,3812.9,3812.5,0.00305381]
[1761931202955,0.47235,3812.7,3812.5,0.00305381]
[1761931203259,0.47234,3812.8,3812.5,0.00305381]
[1761931203450,3.2078,3812.9,3812.5,0.00305381]
[1761931203853,0.47235,3812.7,3812.5,0.00305381]
[1761931204164,3.2078,3812.9,3812.5,0.00305381]
[1761931204353,0.47234,3812.8,3812.5,0.00305381]
[1761931204660,0.47235,3812.7,3812.5,0.00305381]
[1761931205461,0.47232,3812.9,3812.6,3.2078]
[1761931205763,0.47232,3812.9,3812.5,0.00305381]
[1761931205764,0.47233,3812.9,3812.5,0.47542381]
[1761931206150,0.47232,3813.0,3812.5,0.00305381]
[1761931206467,0.4723,3813.1,3812.8,3.68013]
[1761931206962,1.18059,3813.6,3812.8,3.2078]
[1761931207167,0.47232,3812.9,3812.8,3.2078]
[1761931207459,3.2078,3813.7,3813.0,0.47231]
[1761931207663,0.47229,3813.2,3813.1,9.696]
[1761931207863,0.47227,3813.3,3813.1,10.16829]
[1761931208160,3.2078,3813.7,3813.1,10.16829]
[1761931208161,0.47226,3813.4,3813.1,10.16829]
[1761931208356,0.47228,3813.3,3813.1,9.696]
[1761931208556,0.47228,3813.2,3813.1,9.696]
[1761931209463,0.47227,3813.3,3813.1,9.696]
[1761931209661,3.2078,3813.7,3813.1,9.696]
[1761931209662,0.47225,3813.5,3813.1,9.696]
[1761931209858,0.00289993,3813.8,3813.4,3.2078]
[1761931210163,0.00289993,3813.8,3813.7,0.47222]
[1761931210561,0.60873,3814.5,3813.7,0.68208667]
[1761931210759,0.47209,3814.8,3814.4,0.47213]
[1761931211061,0.1366,3815.5,3814.6,3.2078]
[1761931211274,3.2078,3815.9,3814.8,1.18022]
[1761931211559,0.00185089,3815.9,3815.2,3.2078]
[1761931211760,0.1366,3817.0,3816.5,0.47187]
[1761931211962,0.1366,3817.0,3816.6,13.35666]
[1761931212268,0.60836,3817.5,3816.6,13.35665]
[1761931212562,0.1366,3817.5,3816.8,0.47183]
[1761931212760,0.1366,3817.5,3816.6,12.9937]
[1761931212761,0.13923245,3817.5,3816.6,12.9937]
[1761931212962,0.00263245,3817.5,3817.2,3.67958]
[1761931213165,0.00263245,3817.5,3817.2,3.2078]
[1761931213460,3.2078,3818.6,3817.3,9.677]
[1761931213662,0.1366,3819.0,3817.3,9.677]
[1761931213663,0.1366,3819.0,3818.3,3.2078]
[1761931213858,0.60817,3819.0,3818.7,3.2078]
[1761931214063,0.60817,3819.0,3818.4,9.683]
[1761931214064,0.47151,3819.5,3818.8,9.683]
[1761931214368,0.47155,3819.2,3818.8,9.683]
[1761931214560,0.0024841,3819.2,3819.0,3.2078]
[1761931214760,0.1366,3820.2,3819.0,3.2078]
[1761931214959,0.47144,3820.0,3819.0,3.2078]
[1761931215157,0.47144,3820.0,3819.0,3.67935]
[1761931215358,0.47153,3819.4,3819.0,3.2078]
[1761931215657,0.00253909,3819.4,3819.1,9.679]
[1761931216769,0.47406909,3819.4,3819.0,3.2078]
[1761931216970,0.47154,3819.3,3819.0,3.2078]
[1761931217168,0.47155,3819.1,3819.0,3.2078]
[1761931217370,0.47158,3818.9,3818.8,0.00277447]
[1761931217769,0.1366,3818.4,3818.1,3.05]
[1761931218169,0.47165,3818.3,3818.1,3.05]
[1761931218565,0.1366,3818.4,3818.0,9.672]
[1761931218566,0.47169,3818.1,3818.0,9.672]
[1761931218961,0.47169,3818.1,3818.0,9.67468282]
[1761931219168,0.1366,3818.4,3818.0,9.67468282]
[1761931219473,0.1366,3818.4,3818.1,9.665]
[1761931219668,3.67946,3818.3,3818.1,9.665]
[1761931219965,0.47168,3818.1,3818.0,0.00268282]
[1761931220165,3.2078,3818.3,3816.9,3.2078]
[1761931220166,0.47181,3817.0,3816.9,3.2078]
[1761931220361,3.2078,3817.6,3816.9,6.3328]
[1761931220565,0.60971,3817.1,3816.9,3.2078]
[1761931220769,0.60971,3817.1,3815.4,0.1089]
[1761931220770,0.47184,3816.8,3816.4,3.2078]
[1761931220966,0.1379,3817.1,3816.4,3.2078]
[1761931220967,0.1379,3817.1,3816.5,3.067]
[1761931221274,3.2078,3817.6,3816.5,3.06944759]
[1761931221485,0.47186,3816.7,3816.5,0.00244759]
[1761931221770,0.47524234,3816.7,3816.5,0.00244759]
[1761931221969,3.68304234,3816.7,3816.5,0.00244759]
[1761931222163,0.47524234,3816.7,3816.5,0.00244759]
[1761931222470,0.00338234,3816.7,3816.5,0.47430759]
[1761931223276,0.47177,3817.4,3816.5,0.00244759]
[1761931223465,3.2078,3817.7,3816.8,3.2078]
[1761931223665,3.2078,3817.7,3816.9,9.678]
[1761931224069,3.2078,3817.7,3816.8,3.67963]
[1761931224070,0.47182,3817.0,3816.8,3.2078]
[1761931224367,0.00213476,3817.0,3816.9,9.678]
[1761931225261,0.47395476,3817.0,3816.8,3.2078]
[1761931225568,0.47395476,3817.0,3816.9,4.648]
[1761931226169,0.47395476,3817.0,3815.6,3.2078]
[1761931226170,0.00213476,3817.0,3815.6,3.2078]
[1761931226367,0.1379,3816.4,3815.7,9.677]
[1761931226668,0.4719,3816.3,3815.8,0.47196]
[1761931226865,0.4719,3816.3,3816.0,3.2078]
[1761931227066,0.47191,3816.2,3816.0,3.2078]
[1761931227264,0.47191,3816.2,3816.0,3.21050444]
[1761931227563,0.47191,3816.2,3816.0,0.00270444]
[1761931228265,0.47202,3815.3,3815.2,3.2078]
[1761931228660,0.47208,3814.8,3814.3,3.67994]
[1761931228871,0.47211,3814.6,3814.4,5.144]
[1761931229067,0.1379,3815.0,3814.4,5.144]
[1761931229262,0.1379,3815.0,3814.5,9.694]
[1761931229463,0.47212,3814.5,3814.4,0.00319364]
[1761931229661,0.47211,3814.6,3814.4,9.69519364]
[1761931230070,0.47209,3814.8,3814.4,9.69519364]
[1761931230376,3.2078,3815.3,3814.8,0.47208]
[1761931230672,3.2078,3816.1,3815.1,3.2078]
[1761931230872,3.2078,3815.6,3814.9,3.2078]
[1761931231073,3.2078,3815.6,3814.9,3.676]
[1761931231074,0.1379,3815.0,3814.9,3.676]
[1761931231481,4.38776,3815.6,3815.0,0.47205]
[1761931231482,0.472,3815.5,3815.0,0.47205]
[1761931231772,0.47201,3815.4,3815.0,0.47205]
[1761931231972,3.2078,3815.6,3814.9,6.8838]
[1761931232176,0.1379,3815.0,3814.9,3.676]
[1761931232972,0.47202,3815.3,3814.9,3.676]
[1761931233172,1.17983,3816.1,3815.0,3.67985]
[1761931233173,0.47201,3815.4,3815.0,3.67985]
[1761931233375,3.2078,3816.0,3815.1,0.47204]
[1761931233574,3.2078,3816.0,3815.3,0.47201]
[1761931233772,0.472,3815.5,3815.1,0.47203]
[1761931233976,0.47203,3815.2,3815.0,3.2078]
[1761931234182,0.4721,3814.6,3814.5,3.2078]
[1761931234574,0.4721,3814.6,3814.4,0.00319364]
[1761931235270,0.1379,3815.0,3814.4,0.00319364]
[1761931235473,0.47211,3814.6,3814.4,0.00319364]
[1761931235667,0.47208,3814.8,3814.4,0.47532364]
[1761931235872,0.47208,3814.9,3814.4,0.00319364]
[1761931236084,0.47208,3814.8,3814.4,0.00319364]
[1761931236380,0.47208,3814.8,3814.5,0.47211]
[1761931236579,0.1379,3815.0,3814.5,3.2078]
[1761931236777,0.4721,3814.7,3814.5,3.67991]
[1761931237077,0.4721,3814.7,3814.5,3.2078]
[1761931237281,0.47209,3814.7,3814.5,3.2078]
[1761931237872,0.47209,3814.7,3814.6,9.68]
[1761931238082,0.47208,3814.8,3814.6,9.68]
[1761931239389,0.2305,3814.5,3814.4,0.00319364]
[1761931239680,0.47227,3813.3,3812.9,0.47231]
[1761931239984,0.1379,3813.6,3812.8,5.8818]
[1761931239985,0.47228,3813.2,3812.8,5.8818]
[1761931240178,0.1379,3813.6,3812.8,5.8818]
[1761931240377,0.4723,3813.0,3812.8,5.8818]
[1761931240577,0.47229,3813.1,3812.8,6.35682164]
[1761931240784,0.47225,3813.5,3812.8,5.88450164]
[1761931240979,0.14074605,3813.6,3812.8,5.88450164]
[1761931241180,0.47224,3813.5,3812.8,5.88450164]
[1761931241384,0.14074605,3813.6,3813.4,0.47225]
[1761931241683,0.00284605,3813.6,3813.5,0.2183]
[1761931243477,0.00284605,3813.6,3813.5,0.69054]
[1761931243673,4.605e-05,3813.6,3813.5,0.69054]
[1761931244479,0.47216,3814.2,3814.0,0.47217]
[1761931244690,0.47211,3814.6,3814.1,3.67997]
[1761931244878,0.47211,3814.6,3814.1,3.2078]
[1761931245076,4.38786,3815.3,3814.6,0.4721]
[1761931245384,0.14006776,3815.0,3814.5,3.2078]
[1761931245579,0.00216776,3815.0,3814.8,0.47208]
[1761931245786,0.00216776,3815.0,3814.9,0.47207]
[1761931245979,0.00216776,3815.0,3814.6,0.4721]
[1761931246173,0.00216776,3815.0,3814.5,3.2078]
[1761931246377,0.47211,3814.6,3814.5,3.2078]
[1761931248081,0.47209,3814.7,3814.5,3.2078]
[1761931248288,0.00216776,3815.0,3814.7,0.47209]
[1761931248489,0.47207,3814.9,3814.8,3.4233]
[1761931248784,0.47207,3814.9,3814.8,0.2155]
[1761931249183,0.4721,3814.7,3814.5,0.47212]
[1761931249483,0.00216776,3815.0,3814.4,3.2078]
[1761931249484,0.47212,3814.5,3814.4,3.2078]
[1761931250486,0.70692,3814.5,3814.4,3.2078]
[1761931251187,0.47208,3814.8,3814.7,0.68759]
[1761931251386,0.00216776,3815.0,3814.9,0.2155]
[1761931251590,0.00216776,3815.0,3814.9,3.89537]
[1761931252587,0.00216776,3815.0,3814.9,3.4233]
[1761931252888,0.00216776,3815.0,3814.9,3.2078]
[1761931253192,0.47208,3814.9,3814.8,9.641]
[1761931253490,0.47423776,3815.0,3814.8,9.641]
[1761931253791,0.47423776,3815.0,3814.8,10.11309]
[1761931253982,0.00216776,3815.0,3814.9,0.2155]
[1761931254689,0.00216776,3815.0,3814.9,3.4233]
[1761931256894,0.47424776,3815.0,3814.9,3.4233]
[1761931257286,0.47424776,3815.0,3814.9,3.89539]
[1761931257588,0.00216776,3815.0,3814.9,3.89539]
[1761931257891,0.00216776,3815.0,3814.9,3.4233]
[1761931257892,0.47424776,3815.0,3814.9,3.4233]
[1761931258487,0.47424776,3815.0,3814.9,3.89539]
[1761931258690,0.00216776,3815.0,3814.9,3.89539]
[1761931258999,0.47423776,3815.0,3814.9,3.89538]
[1761931259385,0.47423776,3815.0,3814.9,3.4233]
[1761931259592,0.47423776,3815.0,3814.8,9.641]
[1761931259593,0.70688,3814.9,3814.8,9.641]
[1761931260689,0.47422776,3815.0,3814.9,0.47207]
[1761931260889,0.00216776,3815.0,3814.9,3.89537]
[1761931261694,0.47421776,3815.0,3814.9,3.89537]
[1761931262297,0.00216776,3815.0,3814.9,3.89537]
[1761931262498,0.47421776,3815.0,3814.9,3.89537]
[1761931262797,0.00216776,3815.0,3814.9,3.89537]
[1761931263097,0.13616776,3815.0,3814.9,12.7938]
[1761931263298,0.00216776,3815.0,3814.9,13.48136]
[1761931263490,0.134,3816.0,3815.6,0.2155]
[1761931263689,0.47193,3815.9,3815.8,0.68745]
[1761931263895,0.47193,3815.9,3815.8,0.2155]
[1761931264101,0.134,3816.0,3815.9,0.68743]
[1761931264397,0.47187,3816.4,3816.3,0.2155]
[1761931264599,0.4742151,3816.4,3816.3,9.80257463]
[1761931264988,0.7090151,3816.4,3816.3,9.58707463]
[1761931265185,0.134,3815.5,3815.4,3.6798]
[1761931265397,0.134,3816.0,3815.6,0.2155]
[1761931265588,0.134,3816.0,3815.7,0.2155]
[1761931265589,0.60594,3816.0,3815.7,0.2155]
[1761931265891,0.60593,3816.0,3815.9,0.2155]